fUST/lending_fUST_20250129
["ID","MTS","AMOUNT","RATE_DAILY","PERIOD"]
[350774926,1738121446579,-500.0,0.0001698,2]
[350774927,1738121446588,-642.44065692,0.0001698,2]
[350774928,1738121446597,-500.0,0.0001698,2]
[350774929,1738121446607,-151.0,0.0001698,2]
[350774930,1738121446616,-151.0,0.0001698,2]
[350774931,1738121446626,-151.0,0.0001698,2]
[350774932,1738121446636,-315.406097,0.0001698,2]
[350774933,1738121446645,-315.406097,0.0001698,2]
[350774934,1738121446655,-315.406097,0.0001698,2]
[350774935,1738121446664,-315.406097,0.0001698,2]
[350774936,1738121446673,-315.406097,0.0001698,2]
[350774937,1738121446683,-315.406097,0.0001698,2]
[350774938,1738121446693,-228.771199,0.0001698,2]
[350774939,1738121446702,-228.771199,0.0001698,2]
[350774940,1738121446712,-228.771199,0.0001698,2]
[350774941,1738121446722,-228.771199,0.0001698,2]
[350774942,1738121446731,-2390.569833,0.0001698,2]
[350774943,1738121446740,-228.771199,0.0001698,2]
[350774944,1738121446751,-2390.569833,0.0001698,2]
[350774945,1738121446760,-228.771199,0.0001698,2]
[350774946,1738121446770,-2390.569833,0.0001698,2]
[350774947,1738121446780,-2390.569833,0.0001698,2]
[350774948,1738121446789,-2390.569833,0.0001698,2]
[350774949,1738121446799,-2390.569833,0.0001698,2]
[350774950,1738121446811,-162.152734,0.0001698,2]
[350774951,1738121446820,-162.152734,0.0001698,2]
[350774952,1738121446829,-162.152734,0.0001698,2]
[350774953,1738121446839,-162.152734,0.0001698,2]
[350774954,1738121446849,-162.152734,0.0001698,2]
[350774955,1738121446859,-162.152741,0.0001698,2]
[350774956,1738121446869,-190.757891,0.0001698,2]
[350774957,1738121446880,-190.757891,0.0001698,2]
[350774958,1738121446890,-190.757891,0.0001698,2]
[350774959,1738121446899,-190.757891,0.0001698,2]
[350774960,1738121446910,-190.757891,0.0001698,2]
[350774961,1738121446919,-190.757898,0.0001698,2]
[350774962,1738121446928,-480.978159,0.0001698,2]
[350774963,1738121446938,-480.978159,0.0001698,2]
[350774964,1738121446947,-480.978159,0.0001698,2]
[350774965,1738121446957,-480.978163,0.0001698,2]
[350774966,1738121446966,-179.13438,0.0001698,2]
[350774967,1738121446976,-179.13438,0.0001698,2]
[350774968,1738121446985,-179.13438,0.0001698,2]
[350774969,1738121446995,-179.134389,0.0001698,2]
[350774970,1738121447004,-151.0,0.0001698,2]
[350774971,1738121447015,-196.288454,0.0001698,2]
[350774972,1738121447024,-151.0,0.0001698,2]
[350774973,1738121447034,-459.937364,0.0001698,2]
[350774974,1738121447044,-459.937372,0.0001698,2]
[350774975,1738121447053,-151.0,0.00016981,2]
[350774976,1738121447065,-315.406097,0.00016981,2]
[350774977,1738121447075,-315.406101,0.00016981,2]
[350774978,1738121447085,-228.771199,0.00016981,2]
[350774979,1738121447095,-228.771194,0.00016981,2]
[350774980,1738121447105,-2390.569833,0.00016981,2]
[350774981,1738121447115,-2390.569827,0.00016981,2]
[350774982,1738121447126,-249.24565799,0.00016982,2]
[350774983,1738121447135,-287.65545186,0.00016982,2]
[350774984,1738121447145,-299.78866926,0.00016982,2]
[350774985,1738121447155,-502.49303979,0.00016982,2]
[350774986,1738121447165,-501.34688544,0.00016982,2]
[350774987,1738121447175,-500.0,0.00016982,2]
[350774988,1738121447185,-503.17670183,0.00016982,2]
[350774989,1738121447196,-285.034224,0.00016982,2]
[350774990,1738121447206,-151.0,0.00016982,2]
[350774991,1738121447216,-151.0,0.00016982,2]
[350774992,1738121447226,-151.0,0.00016982,2]
[350774993,1738121447236,-151.0,0.00016982,2]
[350774994,1738121447245,-168.374548,0.00016982,2]
[350774995,1738121447255,-168.374548,0.00016982,2]
[350774996,1738121447265,-168.374548,0.00016982,2]
[350774997,1738121447275,-168.374548,0.00016982,2]
[350774998,1738121447284,-168.374548,0.00016982,2]
[350774999,1738121447294,-168.374548,0.00016982,2]
[350775000,1738121447304,-168.374548,0.00016982,2]
[350775001,1738121447315,-168.374548,0.00016982,2]
[350775002,1738121447325,-5000.0,0.00017,2]
[350775003,1738121447336,-153.0,0.00017,2]
[350775004,1738121447345,-500.0,0.00017035,2]
[350775005,1738121447355,-500.0,0.00017035,2]
[350775006,1738121447365,-500.0,0.00017035,2]
[350775007,1738121447374,-500.0,0.00017035,2]
[350775008,1738121447384,-1119.72,0.00017035,2]
[350775009,1738121447393,-682.63,0.00017035,2]
[350775010,1738121447403,-515.32,0.00017035,2]
[350775011,1738121447412,-500.0,0.00017035,2]
[350775012,1738121447422,-500.0,0.00017035,2]
[350775013,1738121447432,-500.0,0.00017035,2]
[350775014,1738121447442,-500.0,0.00017035,2]
[350775015,1738121447451,-500.0,0.00017035,2]
[350775016,1738121447461,-500.0,0.00017035,2]
[350775017,1738121447470,-500.0,0.00017035,2]
[350775018,1738121447480,-500.0,0.00017035,2]
[350775019,1738121447599,-500.0,0.00017036,2]
[350775020,1738121447612,-1442.23,0.00017036,2]
[350775021,1738121447623,-2591.22,0.00017036,2]
[350775022,1738121447632,-500.0,0.00017036,2]
[350775023,1738121447642,-500.0,0.00017036,2]
[350775024,1738121447653,-500.0,0.00017036,2]
[350775025,1738121447664,-1316.88,0.00017036,2]
[350775026,1738121447674,-500.0,0.00017036,2]
[350775027,1738121447684,-1097.65,0.00017036,2]
[350775028,1738121447694,-500.0,0.00017036,2]
[350775029,1738121447706,-500.0,0.00017036,2]
[350775030,1738121447717,-668.88,0.00017036,2]
[350775031,1738121447727,-500.0,0.00017036,2]
[350775032,1738121447736,-542.09,0.00017036,2]
[350775033,1738121447745,-500.0,0.00017036,2]
[350775034,1738121447756,-500.0,0.00017036,2]
[350775035,1738121447765,-500.0,0.00017036,2]
[350775036,1738121447776,-500.0,0.00017036,2]
[350775037,1738121447786,-500.0,0.00017036,2]
[350775038,1738121447796,-739.71,0.00017036,2]
[350775039,1738121447806,-500.0,0.00017036,2]
[350775040,1738121447815,-500.0,0.00017036,2]
[350775041,1738121447825,-500.0,0.00017036,2]
[350775042,1738121447838,-1088.07,0.00017036,2]
[350775043,1738121447848,-2092.2,0.00017036,2]
[350775044,1738121447858,-500.0,0.00017036,2]
[350775045,1738121447867,-500.0,0.00017036,2]
[350775046,1738121447877,-500.0,0.00017036,2]
[350775047,1738121447886,-500.0,0.00017036,2]
[350775048,1738121447895,-500.0,0.00017036,2]
[350775049,1738121447905,-500.0,0.00017036,2]
[350775050,1738121447914,-1106.35,0.00017036,2]
[350775051,1738121447923,-708.34,0.00017036,2]
[350775052,1738121447934,-538.47,0.00017036,2]
[350775053,1738121447943,-500.0,0.00017036,2]
[350775054,1738121447953,-500.0,0.00017036,2]
[350775055,1738121447962,-500.0,0.00017036,2]
[350775056,1738121447971,-500.0,0.00017036,2]
[350775057,1738121447981,-500.0,0.00017036,2]
[350775058,1738121447990,-500.0,0.00017036,2]
[350775059,1738121448000,-500.0,0.00017036,2]
[350775060,1738121448009,-500.0,0.00017036,2]
[350775061,1738121448019,-500.0,0.00017036,2]
[350775062,1738121448028,-3785.03,0.00017036,2]
[350775063,1738121448038,-500.0,0.00017036,2]
[350775064,1738121448048,-500.0,0.00017036,2]
[350775065,1738121448059,-500.0,0.00017036,2]
[350775066,1738121448069,-161.79850642,0.00017114,2]
[350775067,1738121448078,-160.0,0.00017114,2]
[350775068,1738121448087,-500.0,0.00017115,2]
[350775069,1738121448097,-500.0,0.00017115,2]
[350775070,1738121448106,-504.83174823,0.00017115,2]
[350775071,1738121448116,-500.0,0.00017115,2]
[350775072,1738121448126,-500.0,0.00017115,2]
[350775073,1738121448136,-500.0,0.00017115,2]
[350775074,1738121448146,-500.0,0.00017115,2]
[350775075,1738121448155,-500.0,0.00017115,2]
[350775076,1738121448165,-500.0,0.00017115,2]
[350775077,1738121448174,-500.0,0.00017115,2]
[350775078,1738121448184,-500.0,0.00017115,2]
[350775079,1738121448193,-500.0,0.00017115,2]
[350775080,1738121448202,-168.82,0.00017115,2]
[350775081,1738121448211,-500.0,0.00017115,2]
[350775082,1738121448220,-500.0,0.00017115,2]
[350775083,1738121448230,-500.0,0.00017115,2]
[350775084,1738121448239,-500.0,0.00017115,2]
[350775085,1738121448249,-500.0,0.00017115,2]
[350775086,1738121448258,-500.0,0.00017115,2]
[350775087,1738121448267,-500.0,0.00017115,2]
[350775088,1738121448277,-500.0,0.00017115,2]
[350775089,1738121448287,-500.0,0.00017115,2]
[350775090,1738121448296,-500.0,0.00017115,2]
[350775091,1738121448307,-500.0,0.00017115,2]
[350775092,1738121448316,-500.0,0.00017115,2]
[350775093,1738121448326,-500.0,0.00017115,2]
[350775094,1738121448335,-500.0,0.00017115,2]
[350775095,1738121448344,-500.0,0.00017115,2]
[350775096,1738121448353,-501.92403615,0.00017115,2]
[350775097,1738121448362,-500.0,0.00017115,2]
[350775098,1738121448372,-500.0,0.00017115,2]
[350775099,1738121448381,-500.0,0.00017115,2]
[350775100,1738121448390,-500.0,0.00017115,2]
[350775101,1738121448399,-500.0,0.00017115,2]
[350775102,1738121448408,-500.0,0.00017115,2]
[350775103,1738121448418,-500.0,0.00017115,2]
[350775104,1738121448427,-500.0,0.00017115,2]
[350775105,1738121448436,-500.0,0.00017115,2]
[350775106,1738121448446,-501.89589802,0.00017115,2]
[350775107,1738121448455,-500.0,0.00017115,2]
[350775108,1738121448465,-501.56441072,0.00017115,2]
[350775109,1738121448474,-500.0,0.00017115,2]
[350775110,1738121448484,-500.0,0.00017115,2]
[350775111,1738121448494,-500.0,0.00017115,2]
[350775112,1738121448503,-500.0,0.00017115,2]
[350775113,1738121448513,-500.0,0.00017115,2]
[350775114,1738121448527,-500.0,0.00017115,2]
[350775115,1738121448537,-500.0,0.00017115,2]
[350775116,1738121448546,-345.35916834,0.00017115,2]
[350775117,1738121448556,-500.0,0.00017115,2]
[350775118,1738121448566,-500.0,0.00017115,2]
[350775119,1738121448575,-503.10717063,0.00017115,2]
[350775120,1738121448585,-500.0,0.00017115,2]
[350775121,1738121448594,-500.0,0.00017115,2]
[350775122,1738121448604,-500.0,0.00017115,2]
[350775123,1738121448614,-502.40845415,0.00017115,2]
[350775124,1738121448624,-500.0,0.00017115,2]
[350775125,1738121448633,-500.0,0.00017115,2]
[350775126,1738121448643,-500.0,0.00017115,2]
[350775127,1738121448653,-2634.39,0.00017115,2]
[350775128,1738121448662,-500.0,0.00017115,2]
[350775129,1738121448672,-275.17424902,0.00017115,2]
[350775130,1738121448681,-500.0,0.00017115,2]
[350775131,1738121448691,-500.0,0.00017115,2]
[350775132,1738121448701,-500.0,0.00017115,2]
[350775133,1738121448710,-500.0,0.00017115,2]
[350775134,1738121448720,-500.0,0.00017115,2]
[350775135,1738121448730,-500.0,0.00017115,2]
[350775136,1738121448740,-500.0,0.00017115,2]
[350775137,1738121448749,-500.0,0.00017115,2]
[350775138,1738121448759,-500.0,0.00017115,2]
[350775139,1738121448769,-506.43130944,0.00017115,2]
[350775140,1738121448779,-705.11,0.00017115,2]
[350775141,1738121448789,-500.0,0.00017115,2]
[350775142,1738121448798,-500.0,0.00017115,2]
[350775143,1738121448811,-506.3811406,0.00017115,2]
[350775144,1738121448821,-500.0,0.00017115,2]
[350775145,1738121448831,-500.0,0.00017115,2]
[350775146,1738121448841,-500.0,0.00017115,2]
[350775147,1738121448851,-1510.8,0.00017115,2]
[350775148,1738121448860,-500.0,0.00017115,2]
[350775149,1738121448870,-500.0,0.00017115,2]
[350775150,1738121448879,-256.18645909,0.00017115,2]
[350775151,1738121448889,-5522.38,0.00017115,2]
[350775152,1738121448900,-500.0,0.00017115,2]
[350775153,1738121448910,-500.0,0.00017115,2]
[350775154,1738121448919,-500.0,0.00017115,2]
[350775155,1738121448929,-500.0,0.00017115,2]
[350775156,1738121448938,-500.0,0.00017115,2]
[350775157,1738121448948,-503.65573583,0.00017115,2]
[350775158,1738121448957,-500.0,0.00017115,2]
[350775159,1738121448967,-500.0,0.00017115,2]
[350775160,1738121448977,-500.0,0.00017115,2]
[350775161,1738121448987,-500.0,0.00017115,2]
[350775162,1738121448997,-500.0,0.00017115,2]
[350775163,1738121449007,-500.0,0.00017115,2]
[350775164,1738121449016,-500.0,0.00017115,2]
[350775165,1738121449026,-500.0,0.00017115,2]
[350775166,1738121449037,-500.0,0.00017115,2]
[350775167,1738121449047,-500.0,0.00017115,2]
[350775168,1738121449061,-500.0,0.00017115,2]
[350775169,1738121449073,-500.0,0.00017115,2]
[350775170,1738121449084,-509.51403526,0.00017115,2]
[350775171,1738121449094,-500.0,0.00017115,2]
[350775172,1738121449104,-500.0,0.00017115,2]
[350775173,1738121449113,-500.0,0.00017115,2]
[350775174,1738121449123,-500.0,0.00017115,2]
[350775175,1738121449133,-500.0,0.00017115,2]
[350775176,1738121449143,-500.0,0.00017115,2]
[350775177,1738121449152,-500.0,0.00017115,2]
[350775178,1738121449161,-500.0,0.00017115,2]
[350775179,1738121449172,-500.0,0.00017115,2]
[350775180,1738121449181,-160.0,0.00017115,2]
[350775181,1738121449191,-500.0,0.00017116,2]
[350775182,1738121449200,-500.0,0.00017116,2]
[350775183,1738121449209,-500.0,0.00017116,2]
[350775184,1738121449219,-500.0,0.00017116,2]
[350775185,1738121449228,-500.0,0.00017116,2]
[350775186,1738121449238,-500.0,0.00017116,2]
[350775187,1738121449247,-500.0,0.00017116,2]
[350775188,1738121449256,-500.0,0.00017116,2]
[350775189,1738121449266,-500.0,0.00017116,2]
[350775190,1738121449275,-500.0,0.00017116,2]
[350775191,1738121449285,-500.0,0.00017116,2]
[350775192,1738121449295,-200.0,0.00017116,2]
[350775193,1738121449307,-500.0,0.00017116,2]
[350775194,1738121449316,-500.0,0.00017116,2]
[350775195,1738121449326,-500.0,0.00017116,2]
[350775196,1738121449336,-500.0,0.00017116,2]
[350775197,1738121449345,-500.0,0.00017116,2]
[350775198,1738121449355,-500.0,0.00017116,2]
[350775199,1738121449473,-500.0,0.00017116,2]
[350775200,1738121449499,-500.0,0.00017116,2]
[350775201,1738121449512,-500.0,0.00017116,2]
[350775202,1738121449524,-452.45943252,0.00017116,2]
[350775203,1738121449538,-500.0,0.00017116,2]
[350775204,1738121449550,-500.0,0.00017116,2]
[350775205,1738121449563,-506.71006065,0.00017116,2]
[350775206,1738121449574,-500.0,0.00017116,2]
[350775207,1738121449584,-500.0,0.00017116,2]
[350775208,1738121449595,-500.0,0.00017116,2]
[350775209,1738121449605,-500.0,0.00017116,2]
[350775210,1738121449616,-500.0,0.00017116,2]
[350775211,1738121449626,-500.0,0.00017116,2]
[350775212,1738121449636,-500.0,0.00017116,2]
[350775213,1738121449646,-500.0,0.00017116,2]
[350775214,1738121449656,-500.0,0.00017116,2]
[350775215,1738121449666,-500.73741514,0.00017116,2]
[350775216,1738121449676,-500.0,0.00017116,2]
[350775217,1738121449686,-501.32912211,0.00017116,2]
[350775218,1738121449696,-500.0,0.00017116,2]
[350775219,1738121449706,-500.0,0.00017116,2]
[350775220,1738121449716,-501.07047784,0.00017116,2]
[350775221,1738121449726,-500.0,0.00017116,2]
[350775222,1738121449737,-500.0,0.00017116,2]
[350775223,1738121449747,-500.0,0.00017116,2]
[350775224,1738121449757,-500.0,0.00017116,2]
[350775225,1738121449768,-500.0,0.00017116,2]
[350775226,1738121449780,-500.0,0.00017116,2]
[350775227,1738121449791,-500.0,0.00017116,2]
[350775228,1738121449802,-500.0,0.00017116,2]
[350775229,1738121449816,-500.0,0.00017116,2]
[350775230,1738121449826,-500.0,0.00017116,2]
[350775231,1738121449836,-500.0,0.00017116,2]
[350775232,1738121449848,-500.0,0.00017116,2]
[350775233,1738121449859,-500.0,0.00017116,2]
[350775234,1738121449870,-503.47630691,0.00017116,2]
[350775235,1738121449879,-500.0,0.00017116,2]
[350775236,1738121449889,-503.7039609,0.00017116,2]
[350775237,1738121449899,-500.0,0.00017116,2]
[350775238,1738121449910,-500.0,0.00017116,2]
[350775239,1738121449921,-500.0,0.00017116,2]
[350775240,1738121449931,-500.0,0.00017116,2]
[350775241,1738121449944,-500.0,0.00017116,2]
[350775242,1738121449954,-623.02576731,0.00017116,2]
[350775243,1738121449963,-500.0,0.00017116,2]
[350775244,1738121449973,-502.90282512,0.00017116,2]
[350775245,1738121449983,-500.0,0.00017116,2]
[350775246,1738121449992,-500.0,0.00017116,2]
[350775247,1738121450002,-500.0,0.00017116,2]
[350775248,1738121450013,-500.0,0.00017116,2]
[350775249,1738121450026,-516.76355915,0.00017116,2]
[350775250,1738121450037,-500.0,0.00017116,2]
[350775251,1738121450050,-500.0,0.00017116,2]
[350775252,1738121450062,-500.0,0.00017116,2]
[350775253,1738121450072,-504.01816273,0.00017116,2]
[350775254,1738121450082,-500.0,0.00017116,2]
[350775255,1738121450092,-500.0,0.00017116,2]
[350775256,1738121450102,-516.05952879,0.00017116,2]
[350775257,1738121450112,-500.0,0.00017116,2]
[350775258,1738121450123,-500.0,0.00017116,2]
[350775259,1738121450132,-501.16677857,0.00017116,2]
[350775260,1738121450142,-500.0,0.00017116,2]
[350775261,1738121450152,-510.24687633,0.00017116,2]
[350775262,1738121450162,-501.77582839,0.00017116,2]
[350775263,1738121450171,-151.0,0.00017116,2]
[350775264,1738121450182,-151.0,0.00017116,2]
[350775265,1738121450191,-500.0,0.00017116,2]
[350775266,1738121450201,-500.0,0.00017116,2]
[350775267,1738121450211,-168.374548,0.00017116,2]
[350775268,1738121450222,-168.374548,0.00017116,2]
[350775269,1738121450231,-500.0,0.00017116,2]
[350775270,1738121450242,-168.374548,0.00017116,2]
[350775271,1738121450252,-168.374541,0.00017116,2]
[350775272,1738121450261,-500.0,0.00017116,2]
[350775273,1738121450271,-500.0,0.00017116,2]
[350775274,1738121450282,-500.0,0.00017116,2]
[350775275,1738121450291,-438.88895099,0.00017116,2]
[350775276,1738121450301,-553.33576924,0.00017116,2]
[350775277,1738121450312,-501.55217064,0.00017116,2]
[350775278,1738121450321,-511.9029364,0.00017116,2]
[350775279,1738121450334,-500.0,0.00017116,2]
[350775280,1738121450344,-500.0,0.00017116,2]
[350775281,1738121450353,-502.26367311,0.00017116,2]
[350775282,1738121450362,-505.75549873,0.00017116,2]
[350775283,1738121450371,-401.55882929,0.00017116,2]
[350775284,1738121450381,-534.6604559,0.00017116,2]
[350775285,1738121450392,-500.0,0.00017116,2]
[350775286,1738121450401,-500.0,0.00017116,2]
[350775287,1738121450411,-500.0,0.00017116,2]
[350775288,1738121450423,-500.0,0.00017116,2]
[350775289,1738121450433,-502.2887872,0.00017116,2]
[350775290,1738121450444,-503.05492283,0.00017116,2]
[350775291,1738121450454,-500.0,0.00017116,2]
[350775292,1738121450465,-500.0,0.00017116,2]
[350775293,1738121450475,-500.0,0.00017116,2]
[350775294,1738121450485,-500.0,0.00017116,2]
[350775295,1738121450494,-500.0,0.00017116,2]
[350775296,1738121450504,-506.88205111,0.00017116,2]
[350775297,1738121450514,-500.0,0.00017116,2]
[350775298,1738121450526,-500.0,0.00017116,2]
[350775299,1738121450538,-500.0,0.00017116,2]
[350775300,1738121450548,-500.0,0.00017116,2]
[350775301,1738121450561,-500.0,0.00017116,2]
[350775302,1738121450571,-500.0,0.00017116,2]
[350775303,1738121450581,-500.0,0.00017116,2]
[350775304,1738121450591,-500.0,0.00017116,2]
[350775305,1738121450601,-500.0,0.00017116,2]
[350775306,1738121450612,-503.54364661,0.00017116,2]
[350775307,1738121450622,-500.0,0.00017116,2]
[350775308,1738121450631,-500.0,0.00017116,2]
[350775309,1738121450642,-500.0,0.00017116,2]
[350775310,1738121450652,-500.0,0.00017116,2]
[350775311,1738121450661,-500.0,0.00017116,2]
[350775312,1738121450671,-500.0,0.00017116,2]
[350775313,1738121450681,-500.0,0.00017116,2]
[350775314,1738121450691,-500.0,0.00017116,2]
[350775315,1738121450701,-500.0,0.00017116,2]
[350775316,1738121450712,-509.43711569,0.00017116,2]
[350775317,1738121450723,-500.0,0.00017116,2]
[350775318,1738121450733,-506.86481476,0.00017116,2]
[350775319,1738121450744,-500.0,0.00017116,2]
[350775320,1738121450754,-500.0,0.00017116,2]
[350775321,1738121450764,-500.0,0.00017116,2]
[350775322,1738121450775,-501.95949302,0.00017116,2]
[350775323,1738121450785,-501.65939829,0.00017116,2]
[350775324,1738121450794,-503.00583732,0.00017116,2]
[350775325,1738121450807,-503.27486444,0.00017116,2]
[350775326,1738121450816,-500.0,0.00017116,2]
[350775327,1738121450827,-500.0,0.00017116,2]
[350775328,1738121450837,-548.17334524,0.00017116,2]
[350775329,1738121450847,-164.90062436,0.00017116,2]
[350775330,1738121450857,-605.63008568,0.00017116,2]
[350775331,1738121450867,-508.38753987,0.00017116,2]
[350775332,1738121450877,-503.66097502,0.00017116,2]
[350775333,1738121450887,-500.0,0.00017116,2]
[350775334,1738121450896,-500.0,0.00017116,2]
[350775335,1738121450906,-509.70199133,0.00017116,2]
[350775336,1738121450916,-373.12433395,0.00017116,2]
[350775337,1738121450926,-500.0,0.00017116,2]
[350775338,1738121450936,-502.34022885,0.00017116,2]
[350775339,1738121450946,-579.40779878,0.00017116,2]
[350775340,1738121450956,-531.89969528,0.00017116,2]
[350775341,1738121450965,-523.92510137,0.00017116,2]
[350775342,1738121450975,-502.84664558,0.00017116,2]
[350775343,1738121450984,-502.85008449,0.00017116,2]
[350775344,1738121450994,-157.54158492,0.00017116,2]
[350775345,1738121451004,-506.29611266,0.00017116,2]
[350775346,1738121451015,-500.0,0.00017116,2]
[350775347,1738121451024,-505.08902571,0.00017116,2]
[350775348,1738121451034,-502.86084605,0.00017116,2]
[350775349,1738121451044,-501.10556935,0.00017116,2]
[350775350,1738121451054,-503.14652186,0.00017116,2]
[350775351,1738121451066,-244.87811421,0.00017116,2]
[350775352,1738121451076,-501.87569776,0.00017116,2]
[350775353,1738121451085,-505.46518994,0.00017116,2]
[350775354,1738121451095,-644.4504408,0.00017116,2]
[350775355,1738121451104,-500.89097146,0.00017116,2]
[350775356,1738121451114,-501.41323162,0.00017116,2]
[350775357,1738121451123,-504.56636609,0.00017116,2]
[350775358,1738121451133,-500.0,0.00017116,2]
[350775359,1738121451144,-500.0,0.00017116,2]
[350775360,1738121451153,-500.0,0.00017116,2]
[350775361,1738121451164,-500.91954449,0.00017116,2]
[350775362,1738121451174,-500.0,0.00017116,2]
[350775363,1738121451184,-500.0,0.00017116,2]
[350775364,1738121451194,-503.47065444,0.00017116,2]
[350775365,1738121451300,-500.0,0.00017116,2]
[350775366,1738121451313,-500.0,0.00017116,2]
[350775367,1738121451323,-500.0,0.00017116,2]
[350775368,1738121451333,-1013.87169319,0.00017116,2]
[350775369,1738121451342,-500.0,0.00017116,2]
[350775370,1738121451352,-512.49249996,0.00017116,2]
[350775371,1738121451362,-505.55842029,0.00017116,2]
[350775372,1738121451371,-500.0,0.00017116,2]
[350775373,1738121451381,-452.62768758,0.00017116,2]
[350775374,1738121451391,-246.06855841,0.00017116,2]
[350775375,1738121451400,-505.27856966,0.00017116,2]
[350775376,1738121451409,-500.0,0.00017116,2]
[350775377,1738121451418,-518.95925627,0.00017116,2]
[350775378,1738121451428,-500.0,0.00017116,2]
[350775379,1738121451437,-500.0,0.00017117,2]
[350775380,1738121451447,-500.0,0.00017117,2]
[350775381,1738121451456,-511.53261373,0.00017117,2]
[350775382,1738121451465,-500.0,0.00017117,2]
[350775383,1738121451475,-500.0,0.00017117,2]
[350775384,1738121451485,-500.0,0.00017117,2]
[350775385,1738121451494,-500.0,0.00017117,2]
[350775386,1738121451503,-500.0,0.00017117,2]
[350775387,1738121451512,-500.0,0.00017117,2]
[350775388,1738121451522,-516.72637003,0.00017117,2]
[350775389,1738121451535,-506.63216976,0.00017117,2]
[350775390,1738121451544,-503.58336166,0.00017117,2]
[350775391,1738121451553,-500.0,0.00017117,2]
[350775392,1738121451567,-500.0,0.00017117,2]
[350775393,1738121451576,-500.0,0.00017117,2]
[350775394,1738121451586,-502.35331233,0.00017117,2]
[350775395,1738121451595,-500.0,0.00017117,2]
[350775396,1738121451607,-500.0,0.00017117,2]
[350775397,1738121451617,-500.0,0.00017117,2]
[350775398,1738121451626,-500.0,0.00017117,2]
[350775399,1738121451635,-500.0,0.00017117,2]
[350775400,1738121451644,-500.0,0.00017117,2]
[350775401,1738121451654,-500.0,0.00017117,2]
[350775402,1738121451676,-500.0,0.00017117,2]
[350775403,1738121451686,-500.0,0.00017117,2]
[350775404,1738121451696,-508.79149948,0.00017119,2]
[350775405,1738121451707,-500.0,0.00017148,2]
[350775406,1738121451717,-500.0,0.00017172,2]
[350775407,1738121451727,-500.0,0.00017172,2]
[350775408,1738121451736,-500.0,0.00017172,2]
[350775409,1738121451747,-500.0,0.00017172,2]
[350775410,1738121451756,-1119.72,0.00017172,2]
[350775411,1738121451766,-682.63,0.00017172,2]
[350775412,1738121451777,-515.32,0.00017172,2]
[350775413,1738121451787,-500.0,0.00017172,2]
[350775414,1738121451798,-500.0,0.00017172,2]
[350775415,1738121451809,-500.0,0.00017172,2]
[350775416,1738121451819,-506.34295501,0.00017172,2]
[350775417,1738121451829,-500.0,0.00017172,2]
[350775418,1738121451840,-234.93022984,0.00017172,2]
[350775419,1738121451849,-524.61157125,0.00017172,2]
[350775420,1738121451859,-500.0,0.00017172,2]
[350775421,1738121451870,-500.0,0.00017173,2]
[350775422,1738121451880,-502.72971501,0.00017173,2]
[350775423,1738121451890,-501.701231,0.00017173,2]
[350775424,1738121451900,-502.90028472,0.00017173,2]
[350775425,1738121451910,-276.39139364,0.00017173,2]